bitfinex-derivatives/quotes_BNBF0:USTF0_20250715
["timestamp","ask_amount","ask_price","bid_price","bid_amount"]
[1752554176379,0.2557573,680.75,679.75,0.98400067]
[1752554176380,0.9875087,680.57,679.75,0.98400067]
[1752554176583,0.9875087,680.56,679.76,0.98400067]
[1752554176782,0.9875087,680.54,679.78,0.98400067]
[1752554177185,0.2557573,680.75,679.8,0.98400067]
[1752554177186,0.9875087,680.49,679.8,0.98400067]
[1752554177383,0.9875087,680.5,679.8,0.98400067]
[1752554177682,0.9875087,680.5,679.79,0.98400067]
[1752554178084,0.9875087,680.51,679.78,0.98400067]
[1752554178285,0.9875087,680.52,679.78,0.98400067]
[1752554179389,0.9875087,680.51,679.78,0.98400067]
[1752554179787,0.9875087,680.49,679.75,0.98400067]
[1752554179990,0.9875087,680.46,679.72,0.98400067]
[1752554180290,0.9875087,680.42,679.69,0.98400067]
[1752554180587,0.9875087,680.38,679.64,0.98400067]
[1752554180791,0.9875087,680.39,679.63,0.98400067]
[1752554180991,0.9875087,680.38,679.64,0.98400067]
[1752554181389,0.2557573,680.75,679.63,0.98400067]
[1752554181390,0.9875087,680.36,679.63,0.98400067]
[1752554181690,0.9875087,680.32,679.59,1.23984352]
[1752554182292,0.9875087,680.33,679.59,1.23984352]
[1752554182487,0.9875087,680.31,679.6,0.98400067]
[1752554182987,0.9875087,680.31,679.59,1.23984352]
[1752554183289,0.9875087,680.31,679.59,0.25584285]
[1752554184589,0.9875087,680.32,679.6,0.98400067]
[1752554185093,0.9875087,680.33,679.61,0.98400067]
[1752554186995,0.9875087,680.31,679.62,0.98400067]
[1752554188391,1.3174527,680.48,679.62,0.98400067]
[1752554188593,0.98926067,680.31,679.62,0.98596157]
[1752554189193,0.98926067,680.31,679.63,0.98596157]
[1752554190297,0.98926067,680.3,679.63,0.98596157]
[1752554190497,0.98926067,680.26,679.66,0.98596157]
[1752554191399,0.98926067,680.28,679.68,0.98596157]
[1752554191799,0.98926067,680.26,679.69,0.98596157]
[1752554192002,0.98926067,680.31,679.72,0.98596157]
[1752554192403,0.98926067,680.32,679.72,0.98596157]
[1752554192603,0.98926067,680.34,679.74,0.98596157]
[1752554193002,1.976179,680.63,679.59,0.25584285]
[1752554193003,0.98926067,680.35,679.75,0.98596157]
[1752554193301,0.98926067,680.36,679.75,0.98596157]
[1752554194504,0.98926067,680.37,679.75,0.98596157]
[1752554194903,0.98926067,680.41,679.81,0.98596157]
[1752554195704,0.98926067,680.4,679.81,0.98596157]
[1752554196006,0.98926067,680.42,679.81,0.98596157]
[1752554196205,0.98926067,680.42,679.59,0.25584285]
[1752554196206,0.98926067,680.47,679.86,0.98596157]
[1752554197003,0.98926067,680.46,679.87,0.98596157]
[1752554198305,0.98926067,680.46,679.86,0.98596157]
[1752554198604,0.98926067,680.47,679.87,0.98596157]
[1752554199207,0.98926067,680.47,679.86,0.98596157]
[1752554201108,0.98926067,680.48,679.86,0.98596157]
[1752554201507,0.98926067,680.49,679.85,0.98596157]
[1752554202404,0.98926067,680.52,679.85,0.98596157]
[1752554202605,0.98926067,680.54,679.82,0.98596157]
[1752554202908,0.98926067,680.56,679.8,0.98596157]
[1752554203306,0.98926067,680.61,679.86,0.98596157]
[1752554204207,0.98926067,680.62,679.85,0.98596157]
[1752554204808,0.98926067,680.63,679.85,0.98596157]
[1752554206112,0.98926067,680.63,679.84,0.98596157]
[1752554207110,0.98926067,680.64,679.84,0.98596157]
[1752554209115,0.98926067,680.65,679.83,0.98596157]
[1752554209814,0.98926067,680.64,679.84,0.98596157]
[1752554210218,0.98926067,680.65,679.83,0.98596157]
[1752554211418,0.98926067,680.64,679.83,0.98596157]
[1752554211620,0.98926067,680.65,679.83,0.98596157]
[1752554212419,0.98926067,680.64,679.83,0.98596157]
[1752554212717,0.98926067,680.59,679.86,0.98596157]
[1752554213115,0.98926067,680.6,679.86,0.98596157]
[1752554214723,0.98926067,680.58,679.87,0.98596157]
[1752554215329,0.98926067,680.58,679.86,0.98596157]
[1752554215623,0.98926067,680.58,679.87,0.98596157]
[1752554216228,0.98926067,680.58,679.86,0.98596157]
[1752554217125,0.98926067,680.59,679.86,0.98596157]
[1752554217628,0.98926067,680.59,679.59,0.25584285]
[1752554217629,0.98926067,680.57,679.88,0.98596157]
[1752554218226,0.98926067,680.57,679.87,0.98596157]
[1752554218830,0.98926067,680.66,679.81,0.98596157]
[1752554219325,0.9874185,680.66,679.81,0.98460899]
[1752554219529,0.9874185,680.67,679.82,0.98460899]
[1752554221531,0.9874185,680.66,679.82,0.98460899]
[1752554221726,0.9874185,680.66,679.83,0.98460899]
[1752554221930,0.9874185,680.66,679.59,0.25584285]
[1752554221931,0.9874185,680.73,679.89,0.98460899]
[1752554223230,0.9874185,680.73,679.88,0.98460899]
[1752554224533,0.9874185,680.73,679.87,0.98460899]
[1752554225232,0.9874185,680.74,679.87,0.98460899]
[1752554225735,0.9874185,680.75,679.86,0.98460899]
[1752554225932,0.9874185,680.76,679.86,0.98460899]
[1752554226235,0.9874185,680.76,679.85,0.98460899]
[1752554227237,0.25569246,680.93,679.59,0.25584285]
[1752554227238,0.9874185,680.71,679.88,0.98460899]
[1752554227436,0.9874185,680.7,679.88,0.98460899]
[1752554227737,0.9874185,680.64,679.92,0.98460899]
[1752554228136,0.9874185,680.68,679.89,0.98460899]
[1752554228837,0.9874185,680.67,679.88,0.98460899]
[1752554230941,0.9874185,680.64,679.85,0.98460899]
[1752554231137,0.9874185,680.58,679.79,0.98460899]
[1752554231440,0.9874185,680.57,679.78,0.98460899]
[1752554232636,0.9874185,680.57,679.74,0.2557338]
[1752554232637,0.9874185,680.55,679.76,0.98460899]
[1752554233842,0.9874185,680.56,679.76,0.98460899]
[1752554234338,0.9874185,680.57,679.75,0.98460899]
[1752554234940,0.9874185,680.57,679.76,0.98460899]
[1752554235945,0.9874185,680.54,679.78,0.98460899]
[1752554236146,0.9874185,680.54,679.79,0.98460899]
[1752554236445,0.9874185,680.57,679.81,0.98460899]
[1752554237946,0.9874185,680.57,679.8,0.98460899]
[1752554239046,0.9874185,680.56,679.76,0.98460899]
[1752554239943,0.9874185,680.57,679.75,0.98460899]
[1752554241144,0.9874185,680.57,679.76,0.98460899]
[1752554242045,0.9874185,680.55,679.77,0.98460899]
[1752554242750,0.9874185,680.58,679.8,0.98460899]
[1752554242947,0.9874185,680.6,679.82,0.98460899]
[1752554243247,0.9874185,680.59,679.83,0.98460899]
[1752554244049,0.9874185,680.6,679.83,0.98460899]
[1752554244250,0.9874185,680.59,679.84,0.98460899]
[1752554245553,0.9874185,680.59,679.85,0.25571501]
[1752554245851,0.9874185,680.58,679.85,0.25571501]
[1752554246350,0.9874185,680.54,679.87,0.98460899]
[1752554246550,0.25571501,680.83,679.85,0.25571501]
[1752554246551,0.9874185,680.52,679.85,1.240324]
[1752554247256,0.9874185,680.51,679.86,0.98460899]
[1752554248157,0.25571501,680.83,679.87,0.98460899]
[1752554248158,0.9874185,680.5,679.87,0.98460899]
[1752554249154,0.9874185,680.49,679.87,0.98460899]
[1752554249353,0.9874185,680.48,679.88,0.98460899]
[1752554250358,0.9874185,680.46,679.88,0.98460899]
[1752554251055,0.9874185,680.47,679.88,0.98460899]
[1752554251359,0.9874185,680.46,679.89,0.98460899]
[1752554251858,0.9874185,680.45,679.89,0.98460899]
[1752554252259,0.9874185,680.44,679.9,0.98460899]
[1752554253157,0.9874185,680.44,679.91,0.98460899]
[1752554253559,0.9874185,680.44,679.9,0.98460899]
[1752554253959,0.9874185,680.43,679.91,0.98460899]
[1752554255259,0.9874185,680.42,679.91,0.98460899]
[1752554255464,0.9874185,680.46,679.94,0.98460899]
[1752554255765,0.9874185,680.48,679.96,0.98460899]
[1752554255965,0.9874185,680.56,679.94,0.98460899]
[1752554256164,0.9874185,680.55,679.94,0.98460899]
[1752554256664,0.9874185,680.57,679.95,0.98460899]
[1752554256864,0.9874185,680.57,679.96,0.98460899]
[1752554257365,0.9874185,680.57,679.85,0.25571501]
[1752554257366,0.9874185,680.63,680.01,0.98460899]
[1752554259363,0.9874185,680.58,680.04,0.98460899]
[1752554259663,1.976179,680.85,680.04,0.98460899]
[1752554259664,0.9874185,680.59,680.04,0.98460899]
[1752554260167,0.9874185,680.59,680.03,0.98460899]
[1752554261066,0.9874185,680.59,679.9,1.295571]
[1752554261067,0.9874185,680.59,680.04,0.98460899]
[1752554261366,0.9874185,680.59,680.03,0.98460899]
[1752554264067,0.9874185,680.6,680.02,0.98460899]
[1752554264264,0.9874185,680.63,679.99,0.98460899]
[1752554264467,0.9874185,680.64,679.99,0.98460899]
[1752554265366,0.25569528,680.91,679.85,0.25571501]
[1752554265367,0.9874185,680.63,679.98,0.98460899]
[1752554265667,0.9874185,680.59,679.93,0.98460899]
[1752554265870,0.9874185,680.61,679.9,0.98460899]
[1752554266268,0.9874185,680.62,679.91,0.98460899]
[1752554266870,1.3174527,680.81,679.9,0.98460899]
[1752554266871,0.9874185,680.61,679.9,0.98460899]
[1752554269074,1.3174527,680.81,679.9,0.98460899]
[1752554269075,0.9874185,680.62,679.9,0.98460899]
[1752554269279,0.9874185,680.61,679.9,0.98460899]
[1752554270079,0.9874185,680.6,679.88,0.98460899]
[1752554272081,0.9874185,680.6,679.89,0.98460899]
[1752554272276,0.9874185,680.59,679.89,0.98460899]
[1752554273074,0.9874185,680.6,679.89,0.98460899]
[1752554274080,0.9874185,680.59,679.89,0.98460899]
[1752554274377,0.9874185,680.57,679.9,0.98460899]
[1752554275277,0.9874185,680.56,679.89,0.98460899]
[1752554275476,0.9874185,680.55,679.89,0.98460899]
[1752554275977,0.9874185,680.51,679.92,0.98460899]
[1752554276176,0.9874185,680.48,679.88,0.98460899]
[1752554276980,0.9874185,680.47,679.89,0.98460899]
[1752554280886,0.9874185,680.5,679.88,0.98460899]
[1752554281383,0.9874185,680.54,679.93,0.98460899]
[1752554281681,0.9874185,680.55,679.93,0.98460899]
[1752554281881,0.9874185,680.62,680.0,0.98460899]
[1752554282785,0.9874185,680.64,680.02,0.98460899]
[1752554283287,0.9874185,680.65,680.02,0.98460899]
[1752554283583,0.9874185,680.65,680.03,0.98460899]
[1752554284184,0.9874185,680.66,680.03,0.98460899]
[1752554284482,0.9874185,680.63,680.04,0.98460899]
[1752554287184,0.9874185,680.64,680.04,0.98460899]
[1752554289287,0.9874185,680.64,680.03,0.98460899]
[1752554290091,3.2936317,681.49,680.03,0.98460899]
[1752554290092,0.9874185,680.65,680.03,0.98460899]
[1752554291093,0.9874185,680.71,680.08,0.98460899]
[1752554291492,0.9874185,680.69,680.09,0.98460899]
[1752554291690,0.9874185,680.69,679.85,0.25571501]
[1752554291691,0.9874185,680.74,680.14,0.98460899]
[1752554292195,0.9874185,680.75,680.13,0.98460899]
[1752554293097,0.9874185,680.75,680.12,0.98460899]
[1752554294194,0.9874185,680.75,680.13,0.98460899]
[1752554294400,0.9874185,680.76,680.12,0.98460899]
[1752554294999,0.9874185,680.74,680.13,0.98460899]
[1752554295395,0.9874185,680.75,680.13,0.98460899]
[1752554296196,0.9874185,680.75,680.12,0.98460899]
[1752554298104,0.9874185,680.76,680.11,0.98460899]
[1752554298296,0.9874185,680.75,680.11,0.98460899]
[1752554299203,0.9874185,680.76,680.11,0.98460899]
[1752554299398,0.9874185,680.75,680.11,0.98460899]
[1752554299803,0.9874185,680.76,680.11,0.98460899]
[1752554300101,0.9874185,680.75,680.11,0.98460899]
[1752554301211,0.9874185,680.77,680.1,0.98460899]
[1752554301900,0.9874185,680.77,680.09,0.98460899]
[1752554303405,0.9874185,680.78,680.09,0.98460899]
[1752554305008,0.9874185,680.77,680.09,0.98460899]
[1752554305206,0.9874185,680.79,680.08,0.98460899]
[1752554305405,1.976179,681.07,679.85,0.25571501]
[1752554305406,0.9874185,680.8,680.09,0.98460899]
[1752554305902,0.9874185,680.8,680.08,0.98460899]
[1752554306207,0.9874185,680.8,680.07,0.98460899]
[1752554306702,0.9874185,680.85,680.12,0.98460899]
[1752554307106,0.9874185,680.86,680.12,0.98460899]
[1752554309206,0.9874185,680.87,680.11,0.98460899]
[1752554310508,0.9874185,680.9,680.14,0.98460899]
[1752554310909,0.9874185,680.92,680.13,0.98460899]
[1752554312907,0.9874185,680.93,680.15,0.98460899]
[1752554313213,0.9874185,680.93,680.14,0.98460899]
[1752554313711,0.9874185,680.93,680.15,0.98460899]
[1752554314411,0.9874185,680.98,680.2,0.98460899]
[1752554315313,0.9874185,680.98,680.19,0.98460899]
[1752554315612,0.9874185,680.98,680.04,1.295571]
[1752554315613,0.9874185,680.98,680.2,0.98460899]
[1752554315809,0.9874185,680.97,680.2,0.98460899]
[1752554317312,0.9874185,680.98,680.19,0.98460899]
[1752554317517,0.9874185,680.96,680.2,0.98460899]
[1752554318112,0.9874185,680.98,680.22,0.98460899]
[1752554318416,0.9874185,680.99,680.22,0.98460899]
[1752554319113,0.9874185,681.0,680.22,0.98460899]
[1752554319517,0.9874185,681.08,680.27,0.98460899]
[1752554319818,0.9874185,681.08,680.26,0.98460899]
[1752554320014,0.9874185,681.12,680.3,0.98460899]
[1752554320217,0.9874185,681.13,680.29,0.98460899]
[1752554321116,0.9874185,681.13,680.27,0.98460899]
[1752554321815,0.9874185,681.14,680.27,0.98460899]
[1752554322018,0.9874185,681.13,680.28,0.98460899]
[1752554322217,0.9874185,681.16,680.28,0.98460899]
[1752554323216,0.9874185,681.16,680.27,0.98460899]
[1752554323415,0.9874185,681.15,680.27,0.98460899]
[1752554324218,0.9874185,681.15,680.26,0.98460899]
[1752554325215,0.9874185,681.16,680.25,0.98460899]
[1752554326217,0.9874185,681.17,680.24,0.98460899]
[1752554327220,0.9874185,681.17,680.23,0.98460899]
[1752554328323,0.9874185,681.18,680.23,0.98460899]
[1752554328921,0.9874185,681.17,680.22,0.98460899]
[1752554330526,0.9874185,681.18,680.22,0.98460899]
[1752554333326,0.9874185,681.16,680.23,0.98460899]
[1752554335130,0.9874185,681.16,680.24,0.98460899]
[1752554335527,0.9874185,681.17,680.22,0.98460899]
[1752554335729,0.9874185,681.17,680.23,0.98460899]
[1752554337233,0.9874185,681.17,679.85,0.25571501]
[1752554337234,0.9874185,681.16,680.24,0.98460899]
[1752554337630,0.9874185,681.17,680.23,0.98460899]
[1752554337834,0.9874185,681.17,680.24,0.98460899]
[1752554338431,0.9874185,681.17,680.25,0.98460899]
[1752554338637,0.9874185,681.16,680.25,0.98460899]
[1752554339333,0.9874185,681.15,680.26,0.98460899]
[1752554340037,0.9874185,681.18,680.24,0.98460899]
[1752554341238,0.9874185,681.2,680.23,0.98460899]
[1752554341442,0.9874185,681.19,680.24,0.98460899]
[1752554343344,0.9874185,681.19,680.25,0.98460899]
[1752554346245,0.9874185,681.18,680.26,0.98460899]
[1752554347145,0.9874185,681.16,680.27,0.98460899]
[1752554347341,0.9874185,681.14,680.29,0.98460899]
[1752554348044,0.9874185,681.17,680.33,0.98460899]
[1752554348244,0.9874185,681.19,680.35,0.98460899]
[1752554348843,0.9874185,681.19,680.34,0.98460899]
[1752554349152,0.9874185,681.19,680.35,0.98460899]
[1752554349343,0.9874185,681.11,680.27,0.98460899]
[1752554350443,0.9874185,681.12,680.27,0.98460899]
[1752554351145,0.9874185,681.11,680.27,0.98460899]
[1752554351342,0.9874185,681.11,680.28,0.98460899]
[1752554352247,0.9874185,681.12,680.27,0.98460899]
[1752554353243,0.9874185,681.12,680.28,0.98460899]
[1752554355349,0.9874185,681.12,680.29,0.98460899]
[1752554356252,0.9874185,681.11,680.29,0.98460899]
[1752554357149,0.9874185,681.11,680.3,0.98460899]
[1752554357448,0.9874185,681.14,680.33,0.98460899]
[1752554358560,0.9874185,681.13,680.34,0.98460899]
[1752554359252,0.2555188,681.38,680.35,0.98460899]
[1752554359253,0.9874185,681.12,680.35,0.98460899]
[1752554360354,0.9874185,681.11,680.36,0.98460899]
[1752554361453,0.9874185,681.11,680.37,0.98460899]
[1752554361654,0.9874185,681.11,680.36,0.98460899]
[1752554361850,0.9874185,681.09,680.38,0.98460899]
[1752554362253,0.9874185,681.11,680.37,0.98460899]
[1752554362453,0.9874185,681.13,680.36,0.98460899]
[1752554362956,0.9874185,681.1,680.33,0.98460899]
[1752554363256,0.9874185,681.1,680.34,0.98460899]
[1752554363555,0.9874185,681.1,680.35,0.98460899]
[1752554363750,0.9874185,681.11,680.36,0.98460899]
[1752554364151,0.9874185,681.05,680.32,0.98460899]
[1752554364357,0.9874185,681.05,680.31,0.98460899]
[1752554365157,0.9874185,681.04,680.32,0.98460899]
[1752554365958,0.9874185,681.07,680.35,0.98460899]
[1752554366158,0.9874185,681.06,680.36,0.98460899]
[1752554366358,0.9874185,681.07,680.36,0.98460899]
[1752554366658,0.9874185,681.06,680.36,0.98460899]
[1752554367158,0.9874185,681.06,680.37,0.98460899]
[1752554368259,0.9874185,681.05,680.38,0.98460899]
[1752554369354,0.9874185,681.04,680.38,0.98460899]
[1752554370160,0.9874185,681.03,680.39,0.98460899]
[1752554371164,0.9874185,681.03,680.4,0.98460899]
[1752554372263,0.9874185,680.98,680.43,0.98460899]
[1752554372963,0.9874185,680.98,680.44,0.98460899]
[1752554373260,0.9874185,680.97,680.44,0.98460899]
[1752554373564,0.9874185,680.97,680.45,0.98460899]
[1752554373763,0.9874185,680.97,680.32,1.295571]
[1752554373764,0.9874185,680.96,680.43,0.98460899]
[1752554374265,0.9874185,680.94,680.45,0.98460899]
[1752554374462,0.9874185,680.94,680.44,0.98460899]
[1752554374660,0.9874185,680.94,680.45,0.98460899]
[1752554375164,0.9874185,680.95,680.45,0.98460899]
[1752554375365,0.9874185,680.94,680.45,0.98460899]
[1752554376164,0.9874185,680.92,680.47,0.98460899]
[1752554376465,0.9874185,680.91,680.47,0.98460899]
[1752554377865,0.9874185,680.91,680.36,1.295571]
[1752554377866,0.9874185,680.93,680.46,0.98460899]
[1752554378167,0.9874185,680.92,680.47,0.98460899]
[1752554382168,0.9874185,680.93,680.47,0.98460899]
[1752554382870,0.9874185,680.95,680.49,0.98460899]
[1752554384070,0.9874185,680.97,680.48,0.98460899]
[1752554384871,0.9874185,680.99,680.49,0.98460899]
[1752554387770,0.9874185,680.98,680.49,0.98460899]
[1752554389873,0.9874185,680.99,680.49,0.98460899]
[1752554391774,0.9874185,681.0,680.48,0.98460899]
[1752554393073,0.9874185,681.01,680.48,0.98460899]
[1752554393478,0.9874185,681.04,680.46,0.98460899]
[1752554393675,0.9874185,681.05,680.47,0.98460899]
[1752554393880,0.9874185,681.05,680.48,0.98460899]
[1752554394080,0.9874185,681.04,680.48,0.98460899]
[1752554394376,0.9874185,681.05,680.48,0.98460899]
[1752554395381,0.9874185,681.06,680.49,0.98460899]
[1752554396675,0.9874185,681.09,680.52,0.98460899]
[1752554396878,0.9874185,681.1,680.53,0.98460899]
[1752554397179,0.9874185,681.11,680.54,0.98460899]
[1752554397481,0.9874185,681.11,680.53,0.98460899]
[1752554398177,1.3174527,681.27,679.85,0.25571501]
[1752554398178,0.9874185,681.12,680.55,0.98460899]
[1752554398481,0.9874185,681.13,680.54,0.98460899]
[1752554399979,0.9874185,681.12,680.54,0.98460899]
[1752554400986,0.9874185,681.13,680.53,0.98460899]
[1752554401784,0.9874185,681.13,680.54,0.98460899]
[1752554402484,0.9874185,681.13,680.53,0.98460899]
[1752554403382,0.9874185,681.11,680.55,0.98460899]
[1752554404487,0.9874185,681.12,680.54,0.98460899]
[1752554404794,0.9874185,681.12,680.55,0.98460899]
[1752554405288,0.9874185,681.14,680.53,0.98460899]
[1752554406987,0.9874185,681.16,680.51,0.98460899]
[1752554407688,0.25547941,681.48,680.5,0.98460899]
[1752554407689,0.9874185,681.18,680.5,0.98460899]
[1752554408289,0.9874185,681.19,680.5,0.98460899]
[1752554408487,0.9874185,681.19,680.49,0.98460899]
[1752554408788,0.9874185,681.18,680.5,0.98460899]
[1752554409393,0.9874185,681.18,680.49,0.98460899]
[1752554410592,0.9874185,681.19,680.49,0.98460899]
[1752554410794,0.9874185,681.2,680.48,0.98460899]
[1752554414998,0.9874185,681.19,680.48,0.98460899]
[1752554416799,0.9874185,681.18,680.49,0.98460899]
[1752554417504,0.9874185,681.17,680.5,0.98460899]
[1752554417802,0.9874185,681.15,680.51,0.98460899]
[1752554418799,0.9874185,681.23,680.46,0.98460899]
[1752554419501,0.9874185,681.23,680.45,0.98460899]
[1752554419899,0.9874185,681.24,680.46,0.98460899]
[1752554420398,0.9874185,681.24,680.45,0.98460899]
[1752554420602,0.9874185,681.24,680.46,0.98460899]
[1752554420801,0.9874185,681.23,680.46,0.98460899]
[1752554421200,0.9874185,681.23,680.47,0.98460899]
[1752554422505,0.25547941,681.48,680.48,0.98460899]
[1752554422506,0.9874185,681.25,680.48,0.98460899]
[1752554423305,0.9874185,681.25,680.47,0.98460899]
[1752554424407,0.9874185,681.26,680.47,0.98460899]
[1752554424804,0.9874185,681.32,680.52,0.98460899]
[1752554425306,0.9874185,681.31,680.52,0.98460899]
[1752554425705,0.9874185,681.32,680.52,0.98460899]
[1752554426208,0.9874185,681.33,680.51,0.98460899]
[1752554427405,0.9874185,681.34,680.51,0.98460899]
[1752554427610,0.9874185,681.39,680.56,0.98460899]
[1752554427907,0.9874185,681.4,680.55,0.98460899]
[1752554429510,0.9874185,681.41,680.55,0.98460899]
[1752554429908,0.9874185,681.41,680.54,0.98460899]
[1752554431514,0.9874185,681.42,680.54,0.98460899]
[1752554432311,0.9874185,681.39,680.56,0.98460899]
[1752554432510,0.9874185,681.39,680.55,0.98460899]
[1752554432914,0.9874185,681.4,680.55,0.98460899]
[1752554433315,0.9874185,681.39,680.55,0.98460899]
[1752554433615,0.9874185,681.4,680.55,0.98460899]
[1752554434314,0.9874185,681.37,680.57,0.98460899]
[1752554435016,0.9874185,681.38,680.57,0.98460899]
[1752554435317,0.9874185,681.38,680.56,0.98460899]
[1752554435617,0.9874185,681.38,680.57,0.98460899]
[1752554436213,0.9874185,681.36,680.58,0.98460899]
[1752554436917,0.9874185,681.38,680.57,0.98460899]
[1752554437918,0.9874185,681.36,680.57,0.98460899]
[1752554438118,0.9874185,681.35,680.58,0.98460899]
[1752554439815,0.9874185,681.35,680.59,0.98460899]
[1752554440019,0.9874185,681.34,680.59,0.98460899]
[1752554440515,0.9874185,681.33,680.6,0.98460899]
[1752554441017,0.98714919,681.33,680.6,0.98082903]
[1752554442822,0.98714919,681.32,680.6,0.98082903]
[1752554443823,0.25543534,681.56,680.6,0.98082903]
[1752554443824,0.98714919,681.33,680.6,0.98082903]
[1752554445124,0.98714919,681.29,680.63,0.98082903]
[1752554446621,0.98714919,681.35,680.59,0.98082903]
[1752554448126,0.98714919,681.36,680.59,0.98082903]
[1752554449425,0.98714919,681.35,680.59,0.98082903]
[1752554450528,0.98714919,681.35,680.6,0.98082903]
[1752554452434,0.98714919,681.35,680.61,0.98082903]
[1752554453228,0.98714919,681.35,680.6,0.98082903]
[1752554453430,0.98714919,681.35,680.61,0.98082903]
[1752554453730,0.98714919,681.34,680.61,0.98082903]
[1752554453930,0.98714919,681.35,680.61,0.98082903]
[1752554454227,0.98714919,681.37,680.62,0.98082903]
[1752554454430,0.98714919,681.38,680.64,0.98082903]
[1752554455529,0.98714919,681.38,680.65,0.98082903]
[1752554455827,0.98714919,681.38,680.64,0.98082903]
[1752554456227,0.98714919,681.38,680.65,0.98082903]
[1752554456632,0.98714919,681.33,680.68,0.98082903]
[1752554456931,0.98714919,681.35,680.7,0.98082903]
[1752554457433,2.23159841,681.65,680.4,1.9433566]
[1752554457737,0.98761212,681.35,680.7,0.98087981]
[1752554458032,0.98761212,681.34,680.71,0.98087981]
[1752554458230,0.25541941,681.65,680.76,0.98087981]
[1752554458231,0.98761212,681.37,680.76,0.98087981]
[1752554458434,0.98761212,681.42,680.8,0.98087981]
[1752554458931,0.98761212,681.31,680.68,0.98087981]
[1752554460537,0.98761212,681.32,680.69,0.98087981]
[1752554461236,0.98761212,681.31,680.68,0.98087981]
[1752554461839,1.31681616,681.45,680.22,0.25543253]
[1752554461840,0.98761212,681.35,680.71,0.98087981]
[1752554462238,0.98761212,681.47,680.82,0.98087981]
[1752554462436,0.98761212,681.48,680.82,0.98087981]
[1752554463340,0.98761212,681.48,680.81,0.98087981]
[1752554463940,0.98761212,681.48,680.8,0.98087981]
[1752554464239,0.98761212,681.49,680.8,0.98087981]
[1752554465442,0.98761212,681.49,680.79,0.98087981]
[1752554467447,0.98761212,681.5,680.78,0.98087981]
[1752554467745,0.98761212,681.48,680.79,0.98087981]
[1752554467944,0.98761212,681.5,680.78,0.98087981]
[1752554468146,0.98761212,681.52,680.78,0.98087981]
[1752554469044,0.98761212,681.51,680.78,0.98087981]
[1752554469443,0.98761212,681.52,680.78,0.98087981]
[1752554469754,0.98761212,681.51,680.78,0.98087981]
[1752554470149,0.98600904,681.51,680.78,0.97863943]
[1752554470349,0.98600904,681.52,680.77,0.97863943]
[1752554470544,0.98600904,681.52,680.78,0.97863943]
[1752554471250,0.98600904,681.52,680.77,0.97863943]
[1752554471852,0.98600904,681.51,680.77,0.97863943]
[1752554472050,0.98600904,681.51,680.78,0.97863943]
[1752554472245,0.98600904,681.51,680.77,0.97863943]
[1752554472750,0.98600904,681.52,680.77,0.97863943]
[1752554473048,0.98600904,681.54,680.75,0.97863943]
[1752554474746,0.98600904,681.55,680.74,0.97863943]
[1752554475350,0.98600904,681.56,680.74,0.97863943]
[1752554475549,1.31681616,681.72,680.74,0.97863943]
[1752554475550,0.98600904,681.55,680.74,0.97863943]
[1752554476151,0.98600904,681.57,680.76,0.97863943]
[1752554477352,0.98600904,681.57,680.75,0.97863943]
[1752554477550,0.98600904,681.57,680.76,0.97863943]
[1752554477853,0.98600904,681.56,680.76,0.97863943]
[1752554478553,0.98600904,681.56,680.77,0.97863943]
[1752554481357,0.98600904,681.55,680.77,0.97863943]
[1752554482258,0.98600904,681.56,680.77,0.97863943]
[1752554482558,0.98600904,681.55,680.77,0.97863943]
[1752554482858,0.98600904,681.53,680.79,0.97863943]
[1752554484355,0.98600904,681.54,680.79,0.97863943]
[1752554484659,0.98600904,681.52,680.8,0.97863943]
[1752554484857,0.98600904,681.51,680.81,0.97863943]
[1752554486958,0.25535849,681.81,680.78,0.97863943]
[1752554486959,0.98600904,681.57,680.78,0.97863943]
[1752554487163,0.98600904,681.63,680.84,0.97863943]
[1752554487859,0.98600904,681.66,680.9,0.97863943]
[1752554488162,0.98600904,681.63,680.92,0.97863943]
[1752554488560,0.98600904,681.64,680.91,0.97863943]
[1752554488760,0.98600904,681.69,680.97,0.97863943]
[1752554489259,0.98600904,681.7,680.96,0.97863943]
[1752554490359,0.98600904,681.71,680.95,0.97863943]
[1752554491362,0.98600904,681.71,680.94,0.97863943]
[1752554492462,0.98600904,681.73,680.93,0.97863943]
[1752554493166,0.98600904,681.72,680.93,0.97863943]
[1752554493366,0.25530885,681.98,680.22,0.25543253]
[1752554493367,0.98600904,681.74,680.91,0.97863943]
[1752554493967,0.98600904,681.75,680.92,0.97863943]
[1752554494564,0.98600904,681.78,680.89,0.97863943]
[1752554495366,0.98447741,681.79,680.9,0.97648024]
[1752554495566,0.98447741,681.83,680.94,0.97648024]
[1752554495968,0.98447741,681.84,680.93,0.97648024]
[1752554497271,0.98447741,681.85,680.92,0.97648024]
[1752554497972,0.98447741,681.84,680.92,0.97648024]
[1752554498473,0.98447741,681.85,680.91,0.97648024]
[1752554498769,0.98447741,681.85,680.92,0.97648024]
[1752554499369,0.98447741,681.85,680.91,0.97648024]
[1752554500375,0.98447741,681.86,680.91,0.97648024]
[1752554500977,0.98447741,681.9,680.89,0.97648024]
[1752554501271,0.98361325,681.9,680.89,0.97585265]
[1752554502874,0.98361325,681.91,680.9,0.97585265]
[1752554503174,0.98361325,681.92,680.9,0.97585265]
[1752554503373,0.98361325,681.95,680.97,0.97585265]